Workbook

Sheet 集計フォーマット
A1: 病院・診療所の機能状況（県全体・医療圏別）
H2: 入院患者の状況（年間）（H26.7-H27.6） | M2: 入院患者の状況（月間）（H27.6） | X2: 退院後に在宅医療を必要とする患者の状況（月間）（H27.6） | AC2: 看取りを行った患者数（年間）（H26.7-H27.6） | AI2: 手術の状況（月間）（H27.6） | AT2: がん、脳卒中、心筋梗塞、分娩、精神医療への対応状況（月間）（H27.6） | BA2: 重症患者への対応状況（月間）（H27.6） | BC2: 救急医療の実施状況（月間）（H27.6） | BL2: 急性期後の支援、在宅復帰の支援の状況（月間）（H27.6） | BR2: リハビリテーションの実施状況（月間）（H27.6）
AT3: （がん） | AW3: （脳卒中） | AY3: （心筋梗塞） | AZ3: （分娩）
A5: ＩＤ | B5: 医療機関名 | C5: 病院／ 診療所 | D5: 二次 医療圏 | E5: 一般 病床数 | F5: 療養 病床数 | G5: 病床数 | H5: 新規入院患者数 | I5: 在院患者延べ数 | J5: 退院患者数 | K5: 平均在院日数 | L5: 病床稼働率 | M5: 退院患者数 | N5: うち院内の他病棟へ転棟 | O5: うち家庭へ退院 | P5: うち他の病院、診療所へ転院 | Q5: うち介護老人保健施設に入所 | R5: うち介護老人福祉施設に入所 | S5: うち社会福祉施設・有料老人ホーム等に入所 | T5: 在宅等への退院数 | U5: 在宅等への退院数割合 | V5: うち終了（死亡退院等） | W5: その他 | X5: 退院患者数 | Y5: うち退院後１か月以内に自院が在宅医療を提供する予定の患者数 | Z5: うち退院後１か月以内に他施設が在宅医療を提供する予定の患者 | AA5: うち退院後１か月以内に在宅医療を必要としない患者（死亡退院含む） | AB5: うち退院後１か月以内に在宅医療の実施予定が不明の患者 | AC5: 直近１年間で在宅療養を担当した患者のうち、医療機関以外での看取り数 | AD5: うち自宅での看取り数 | AE5: うち自宅以外での看取り数 | AF5: 直近１年間で在宅療養を担当した患者のうち、医療機関での看取り数 | AG5: うち連携医療機関での看取り数 | AH5: うち連携医療機関以外での看取り数 | AI5: 手術総数 | AJ5: うち筋骨格系・四肢・体幹 | AK5: うち胸部 | AL5: うち腹部 | AM5: うち全身麻酔の手術件数 | AN5: うち筋骨格系・四肢・体幹 | AO5: うち胸部 | AP5: うち腹部 | AQ5: 胸腔鏡下手術 | AR5: 腹腔鏡下手術 | AS5: 内視鏡手術用支援機器加算 | AT5: 悪性腫瘍手術 | AU5: 放射線治療 | AV5: 化学療法 | AW5: 超急性期脳卒中加算 | AX5: 脳血管内手術 | AY5: 経皮的冠動脈形成術 | AZ5: 分娩件数（正常分娩、帝王切開を含む、死産を除く） | BA5: ハイリスク分娩管理加算 | BB5: 救急搬送診療料 | BC5: 救急医療管理加算１及び２ | BD5: 休日に受診した患者延べ数 | BE5: うち診察後直ちに入院となった患者延べ数 | BF5: 夜間・時間外に受診した患者延べ数 | BG5: うち診察後直ちに入院となった患者延べ数 | BH5: 休日・夜間・時間外に受診した患者延べ数 | BI5: うち診察後直ちに入院となった患者延べ数 | BJ5: 救急車の受入件数 | BK5: 地域連携診療計画管理料 | BL5: 地域連携診療計画退院時指導料（Ⅰ） | BM5: 退院調整加算１（一般病棟入院基本料等） | BN5: 退院調整加算２（療養病棟入院基本料等） | BO5: 退院時共同指導料２ | BP5: 介護支援連携指導料 | BQ5: 退院時リハビリテーション指導料 | BR5: 疾患別リハビリテーション料 | BS5: うち心大血管疾患ﾘﾊﾋﾞﾘﾃｰｼｮﾝ料 | BT5: うち脳血管疾患等ﾘﾊﾋﾞﾘﾃｰｼｮﾝ料 | BU5: うち運動器ﾘﾊﾋﾞﾘﾃｰｼｮﾝ料 | BV5: うち呼吸器ﾘﾊﾋﾞﾘﾃｰｼｮﾝ料 | BW5: がん患者ﾘﾊﾋﾞﾘﾃｰｼｮﾝ料 | BX5: 早期ﾘﾊﾋﾞﾘﾃｰｼｮﾝ加算（ﾘﾊﾋﾞﾘﾃｰｼｮﾝ料）
A6: － | B6: 県北 | C6: 病院 | D6: 県南 | E6: 1956 | F6: 796 | G6: 2752 | H6: 37621 | I6: 772579 | J6: 37360 | K6: － | L6: － | M6: 3478 | N6: 599 | O6: 2363 | P6: 117 | Q6: 52 | R6: 31 | S6: 41 | T6: 2487 | U6: － | V6: 272 | W6: 3 | X6: 2879 | Y6: 111 | Z6: 69 | AA6: 2604 | AB6: 95 | AC6: 0 | AD6: 0 | AE6: 0 | AF6: 246 | AG6: 246 | AH6: 0 | AI6: 1189 | AJ6: 227 | AK6: 32 | AL6: 357 | AM6: 376 | AN6: 124 | AO6: 10 | AP6: 113 | AQ6: 0 | AR6: 64 | AS6: 0 | AT6: 68 | AU6: 40 | AV6: 130 | AW6: 0 | AX6: 0 | AY6: 43 | AZ6: 139 | BA6: 10 | BB6: 0 | BC6: 630 | BD6: 14439 | BE6: 1814 | BF6: 21854 | BG6: 4496 | BH6: 36293 | BI6: 6310 | BJ6: 11619 | BK6: 14 | BL6: 11 | BM6: 563 | BN6: 0 | BO6: 0 | BP6: 81 | BQ6: 328 | BR6: 1657 | BS6: 123 | BT6: 904 | BU6: 428 | BV6: 171 | BW6: 62 | BX6: 928
A7: － | B7: 県北 | C7: 診療所 | D7: 県南 | E7: 209 | F7: 16 | H7: 5280 | I7: 43573 | J7: 5754 | K7: － | L7: － | M7: 403 | N7: － | O7: 369 | P7: 10 | Q7: 8 | R7: 0 | S7: 2 | T7: 379 | U7: － | V7: 14 | W7: 0 | X7: 403 | Y7: 6 | Z7: 1 | AA7: 382 | AB7: 3 | AC7: 69 | AD7: 64 | AE7: 0 | AF7: 0 | AG7: 0 | AH7: 0 | AI7: 170 | AJ7: 0 | AK7: 0 | AL7: 0 | AM7: 0 | AN7: 0 | AO7: 0 | AP7: 0 | AQ7: 0 | AR7: 0 | AS7: 0 | AT7: 0 | AU7: 0 | AV7: 0 | AW7: 0 | AX7: 0 | AY7: 0 | AZ7: 58 | BA7: 0 | BB7: 0 | BC7: 0 | BD7: 1200 | BE7: 151 | BF7: 794 | BG7: 452 | BH7: 2024 | BI7: 603 | BJ7: 38 | BK7: 0 | BL7: 0 | BM7: 14 | BN7: 0 | BO7: 0 | BP7: 0 | BQ7: 76 | BR7: 61 | BS7: 0 | BT7: 15 | BU7: 31 | BV7: 0 | BW7: 0 | BX7: 40
A8: － | B8: 県北 小計 | C8: 地域小計 | E8: =SUBTOTAL(9,E6:E7) -> 2165 | F8: =SUBTOTAL(9,F6:F7) -> 812 | G8: =SUBTOTAL(9,G6:G7) ->  | H8: =SUBTOTAL(9,H6:H7) -> 42901 | I8: =SUBTOTAL(9,I6:I7) -> 816152 | J8: =SUBTOTAL(9,J6:J7) -> 43114 | K8: － | L8: － | M8: =SUBTOTAL(9,M6:M7) -> 3881 | N8: =SUBTOTAL(9,N6:N7) -> 599 | O8: =SUBTOTAL(9,O6:O7) -> 2732 | P8: =SUBTOTAL(9,P6:P7) -> 127 | Q8: =SUBTOTAL(9,Q6:Q7) -> 60 | R8: =SUBTOTAL(9,R6:R7) -> 31 | S8: =SUBTOTAL(9,S6:S7) -> 43 | T8: =SUBTOTAL(9,T6:T7) -> 2866 | U8: － | V8: =SUBTOTAL(9,V6:V7) -> 286 | W8: =SUBTOTAL(9,W6:W7) -> 3 | X8: =SUBTOTAL(9,X6:X7) -> 3282 | Y8: =SUBTOTAL(9,Y6:Y7) -> 117 | Z8: =SUBTOTAL(9,Z6:Z7) -> 70 | AA8: =SUBTOTAL(9,AA6:AA7) -> 2986 | AB8: =SUBTOTAL(9,AB6:AB7) -> 98 | AC8: =SUBTOTAL(9,AC6:AC7) -> 69 | AD8: =SUBTOTAL(9,AD6:AD7) -> 64 | AE8: =SUBTOTAL(9,AE6:AE7) -> 0 | AF8: =SUBTOTAL(9,AF6:AF7) -> 246 | AG8: =SUBTOTAL(9,AG6:AG7) -> 246 | AH8: =SUBTOTAL(9,AH6:AH7) -> 0 | AI8: =SUBTOTAL(9,AI6:AI7) -> 1359 | AJ8: =SUBTOTAL(9,AJ6:AJ7) -> 227 | AK8: =SUBTOTAL(9,AK6:AK7) -> 32 | AL8: =SUBTOTAL(9,AL6:AL7) -> 357 | AM8: =SUBTOTAL(9,AM6:AM7) -> 376 | AN8: =SUBTOTAL(9,AN6:AN7) -> 124 | AO8: =SUBTOTAL(9,AO6:AO7) -> 10 | AP8: =SUBTOTAL(9,AP6:AP7) -> 113 | AQ8: =SUBTOTAL(9,AQ6:AQ7) -> 0 | AR8: =SUBTOTAL(9,AR6:AR7) -> 64 | AS8: =SUBTOTAL(9,AS6:AS7) -> 0 | AT8: =SUBTOTAL(9,AT6:AT7) -> 68 | AU8: =SUBTOTAL(9,AU6:AU7) -> 40 | AV8: =SUBTOTAL(9,AV6:AV7) -> 130 | AW8: =SUBTOTAL(9,AW6:AW7) -> 0 | AX8: =SUBTOTAL(9,AX6:AX7) -> 0 | AY8: =SUBTOTAL(9,AY6:AY7) -> 43 | AZ8: =SUBTOTAL(9,AZ6:AZ7) -> 197 | BA8: =SUBTOTAL(9,BA6:BA7) -> 10 | BB8: =SUBTOTAL(9,BB6:BB7) -> 0 | BC8: =SUBTOTAL(9,BC6:BC7) -> 630 | BD8: =SUBTOTAL(9,BD6:BD7) -> 15639 | BE8: =SUBTOTAL(9,BE6:BE7) -> 1965 | BF8: =SUBTOTAL(9,BF6:BF7) -> 22648 | BG8: =SUBTOTAL(9,BG6:BG7) -> 4948 | BH8: =SUBTOTAL(9,BH6:BH7) -> 38317 | BI8: =SUBTOTAL(9,BI6:BI7) -> 6913 | BJ8: =SUBTOTAL(9,BJ6:BJ7) -> 11657 | BK8: =SUBTOTAL(9,BK6:BK7) -> 14 | BL8: =SUBTOTAL(9,BL6:BL7) -> 11 | BM8: =SUBTOTAL(9,BM6:BM7) -> 577 | BN8: =SUBTOTAL(9,BN6:BN7) -> 0 | BO8: =SUBTOTAL(9,BO6:BO7) -> 0 | BP8: =SUBTOTAL(9,BP6:BP7) -> 81 | BQ8: =SUBTOTAL(9,BQ6:BQ7) -> 404 | BR8: =SUBTOTAL(9,BR6:BR7) -> 1718 | BS8: =SUBTOTAL(9,BS6:BS7) -> 123 | BT8: =SUBTOTAL(9,BT6:BT7) -> 919 | BU8: =SUBTOTAL(9,BU6:BU7) -> 459 | BV8: =SUBTOTAL(9,BV6:BV7) -> 171 | BW8: =SUBTOTAL(9,BW6:BW7) -> 62 | BX8: =SUBTOTAL(9,BX6:BX7) -> 968
A9: － | B9: 県西 | C9: 病院 | D9: 県南 | E9: 868 | F9: 462 | G9: 1330 | H9: 14636 | I9: 398183 | J9: 13942 | K9: － | L9: － | M9: 1243 | N9: 138 | O9: 790 | P9: 120 | Q9: 52 | R9: 23 | S9: 23 | T9: 888 | U9: － | V9: 96 | W9: 1 | X9: 1105 | Y9: 12 | Z9: 17 | AA9: 1013 | AB9: 63 | AC9: 0 | AD9: 0 | AE9: 0 | AF9: 0 | AG9: 0 | AH9: 0 | AI9: 410 | AJ9: 144 | AK9: 0 | AL9: 89 | AM9: 146 | AN9: 101 | AO9: 0 | AP9: 14 | AQ9: 0 | AR9: 0 | AS9: 0 | AT9: 13 | AU9: 0 | AV9: 59 | AW9: 0 | AX9: 0 | AY9: 0 | AZ9: 23 | BA9: 0 | BB9: 0 | BC9: 399 | BD9: 6825 | BE9: 843 | BF9: 10375 | BG9: 1581 | BH9: 17200 | BI9: 2424 | BJ9: 5155 | BK9: 0 | BL9: 0 | BM9: 103 | BN9: 0 | BO9: 0 | BP9: 0 | BQ9: 151 | BR9: 749 | BS9: 67 | BT9: 228 | BU9: 372 | BV9: 69 | BW9: 15 | BX9: 484
A10: － | B10: 県西 | C10: 診療所 | D10: 県南 | E10: 194 | F10: 4 | H10: 3367 | I10: 19356 | J10: 3502 | K10: － | L10: － | M10: 329 | N10: 0 | O10: 308 | P10: 6 | Q10: 3 | R10: 0 | S10: 5 | T10: 316 | U10: － | V10: 7 | W10: 0 | X10: 329 | Y10: 0 | Z10: 1 | AA10: 241 | AB10: 0 | AC10: 0 | AD10: 0 | AE10: 0 | AF10: 17 | AG10: 17 | AH10: 0 | AI10: 89 | AJ10: 0 | AK10: 0 | AL10: 0 | AM10: 0 | AN10: 0 | AO10: 0 | AP10: 0 | AQ10: 0 | AR10: 0 | AS10: 0 | AT10: 0 | AU10: 0 | AV10: 0 | AW10: 0 | AX10: 0 | AY10: 0 | AZ10: 56 | BA10: 0 | BB10: 0 | BC10: 11 | BD10: 829 | BE10: 88 | BF10: 3027 | BG10: 185 | BH10: 3856 | BI10: 273 | BJ10: 527 | BK10: 0 | BL10: 0 | BM10: 0 | BN10: 0 | BO10: 0 | BP10: 0 | BQ10: 122 | BR10: 22 | BS10: 0 | BT10: 22 | BU10: 0 | BV10: 0 | BW10: 0 | BX10: 21
A11: － | B11: 県西 小計 | C11: 地域小計 | E11: =SUBTOTAL(9,E9:E10) -> 1062 | F11: =SUBTOTAL(9,F9:F10) -> 466 | G11: =SUBTOTAL(9,G9:G10) ->  | H11: =SUBTOTAL(9,H9:H10) -> 18003 | I11: =SUBTOTAL(9,I9:I10) -> 417539 | J11: =SUBTOTAL(9,J9:J10) -> 17444 | K11: － | L11: － | M11: =SUBTOTAL(9,M9:M10) -> 1572 | N11: =SUBTOTAL(9,N9:N10) -> 138 | O11: =SUBTOTAL(9,O9:O10) -> 1098 | P11: =SUBTOTAL(9,P9:P10) -> 126 | Q11: =SUBTOTAL(9,Q9:Q10) -> 55 | R11: =SUBTOTAL(9,R9:R10) -> 23 | S11: =SUBTOTAL(9,S9:S10) -> 28 | T11: =SUBTOTAL(9,T9:T10) -> 1204 | U11: － | V11: =SUBTOTAL(9,V9:V10) -> 103 | W11: =SUBTOTAL(9,W9:W10) -> 1 | X11: =SUBTOTAL(9,X9:X10) -> 1434 | Y11: =SUBTOTAL(9,Y9:Y10) -> 12 | Z11: =SUBTOTAL(9,Z9:Z10) -> 18 | AA11: =SUBTOTAL(9,AA9:AA10) -> 1254 | AB11: =SUBTOTAL(9,AB9:AB10) -> 63 | AC11: =SUBTOTAL(9,AC9:AC10) -> 0 | AD11: =SUBTOTAL(9,AD9:AD10) -> 0 | AE11: =SUBTOTAL(9,AE9:AE10) -> 0 | AF11: =SUBTOTAL(9,AF9:AF10) -> 17 | AG11: =SUBTOTAL(9,AG9:AG10) -> 17 | AH11: =SUBTOTAL(9,AH9:AH10) -> 0 | AI11: =SUBTOTAL(9,AI9:AI10) -> 499 | AJ11: =SUBTOTAL(9,AJ9:AJ10) -> 144 | AK11: =SUBTOTAL(9,AK9:AK10) -> 0 | AL11: =SUBTOTAL(9,AL9:AL10) -> 89 | AM11: =SUBTOTAL(9,AM9:AM10) -> 146 | AN11: =SUBTOTAL(9,AN9:AN10) -> 101 | AO11: =SUBTOTAL(9,AO9:AO10) -> 0 | AP11: =SUBTOTAL(9,AP9:AP10) -> 14 | AQ11: =SUBTOTAL(9,AQ9:AQ10) -> 0 | AR11: =SUBTOTAL(9,AR9:AR10) -> 0 | AS11: =SUBTOTAL(9,AS9:AS10) -> 0 | AT11: =SUBTOTAL(9,AT9:AT10) -> 13 | AU11: =SUBTOTAL(9,AU9:AU10) -> 0 | AV11: =SUBTOTAL(9,AV9:AV10) -> 59 | AW11: =SUBTOTAL(9,AW9:AW10) -> 0 | AX11: =SUBTOTAL(9,AX9:AX10) -> 0 | AY11: =SUBTOTAL(9,AY9:AY10) -> 0 | AZ11: =SUBTOTAL(9,AZ9:AZ10) -> 79 | BA11: =SUBTOTAL(9,BA9:BA10) -> 0 | BB11: =SUBTOTAL(9,BB9:BB10) -> 0 | BC11: =SUBTOTAL(9,BC9:BC10) -> 410 | BD11: =SUBTOTAL(9,BD9:BD10) -> 7654 | BE11: =SUBTOTAL(9,BE9:BE10) -> 931 | BF11: =SUBTOTAL(9,BF9:BF10) -> 13402 | BG11: =SUBTOTAL(9,BG9:BG10) -> 1766 | BH11: =SUBTOTAL(9,BH9:BH10) -> 21056 | BI11: =SUBTOTAL(9,BI9:BI10) -> 2697 | BJ11: =SUBTOTAL(9,BJ9:BJ10) -> 5682 | BK11: =SUBTOTAL(9,BK9:BK10) -> 0 | BL11: =SUBTOTAL(9,BL9:BL10) -> 0 | BM11: =SUBTOTAL(9,BM9:BM10) -> 103 | BN11: =SUBTOTAL(9,BN9:BN10) -> 0 | BO11: =SUBTOTAL(9,BO9:BO10) -> 0 | BP11: =SUBTOTAL(9,BP9:BP10) -> 0 | BQ11: =SUBTOTAL(9,BQ9:BQ10) -> 273 | BR11: =SUBTOTAL(9,BR9:BR10) -> 771 | BS11: =SUBTOTAL(9,BS9:BS10) -> 67 | BT11: =SUBTOTAL(9,BT9:BT10) -> 250 | BU11: =SUBTOTAL(9,BU9:BU10) -> 372 | BV11: =SUBTOTAL(9,BV9:BV10) -> 69 | BW11: =SUBTOTAL(9,BW9:BW10) -> 15 | BX11: =SUBTOTAL(9,BX9:BX10) -> 505
A12: － | B12: 宇都宮 | C12: 病院 | D12: 県南 | E12: 2991 | F12: 1419 | G12: 4410 | H12: 57889 | I12: 1257646 | J12: 58035 | K12: － | L12: － | M12: 6652 | N12: 938 | O12: 5090 | P12: 192 | Q12: 52 | R12: 48 | S12: 48 | T12: 5238 | U12: － | V12: 258 | W12: 26 | X12: 5714 | Y12: 54 | Z12: 201 | AA12: 5386 | AB12: 73 | AC12: 0 | AD12: 0 | AE12: 0 | AF12: 0 | AG12: 0 | AH12: 0 | AI12: 1670 | AJ12: 360 | AK12: 84 | AL12: 522 | AM12: 747 | AN12: 295 | AO12: 55 | AP12: 239 | AQ12: 15 | AR12: 125 | AS12: 0 | AT12: 232 | AU12: 75 | AV12: 302 | AW12: 0 | AX12: 0 | AY12: 53 | AZ12: 123 | BA12: 15 | BB12: 0 | BC12: 745 | BD12: 16589 | BE12: 3275 | BF12: 27426 | BG12: 8332 | BH12: 44002 | BI12: 11607 | BJ12: 16242 | BK12: 13 | BL12: 10 | BM12: 345 | BN12: 0 | BO12: 0 | BP12: 24 | BQ12: 594 | BR12: 1782 | BS12: 22 | BT12: 1047 | BU12: 630 | BV12: 33 | BW12: 0 | BX12: 953
A13: － | B13: 宇都宮 | C13: 診療所 | D13: 県南 | E13: 435 | F13: 16 | H13: 10153 | I13: 65741 | J13: 10110 | K13: － | L13: － | M13: 784 | N13: － | O13: 744 | P13: 16 | Q13: 1 | R13: 6 | S13: 1 | T13: 752 | U13: － | V13: 13 | W13: 3 | X13: 784 | Y13: 8 | Z13: 4 | AA13: 693 | AB13: 20 | AC13: 70 | AD13: 35 | AE13: 33 | AF13: 89 | AG13: 40 | AH13: 49 | AI13: 368 | AJ13: 23 | AK13: 0 | AL13: 119 | AM13: 15 | AN13: 23 | AO13: 0 | AP13: 0 | AQ13: 0 | AR13: 0 | AS13: 0 | AT13: 0 | AU13: 0 | AV13: 0 | AW13: 0 | AX13: 0 | AY13: 0 | AZ13: 217 | BA13: 0 | BB13: 0 | BC13: 0 | BD13: 1778 | BE13: 84 | BF13: 2085 | BG13: 104 | BH13: 3072 | BI13: 188 | BJ13: 276 | BK13: 0 | BL13: 0 | BM13: 11 | BN13: 0 | BO13: 0 | BP13: 0 | BQ13: 10 | BR13: 0 | BS13: 0 | BT13: 0 | BU13: 0 | BV13: 0 | BW13: 0 | BX13: 0
A14: － | B14: 宇都宮 小計 | C14: 地域小計 | E14: =SUBTOTAL(9,E12:E13) -> 3426 | F14: =SUBTOTAL(9,F12:F13) -> 1435 | G14: =SUBTOTAL(9,G12:G13) ->  | H14: =SUBTOTAL(9,H12:H13) -> 68042 | I14: =SUBTOTAL(9,I12:I13) -> 1323387 | J14: =SUBTOTAL(9,J12:J13) -> 68145 | K14: － | L14: － | M14: =SUBTOTAL(9,M12:M13) -> 7436 | N14: =SUBTOTAL(9,N12:N13) -> 938 | O14: =SUBTOTAL(9,O12:O13) -> 5834 | P14: =SUBTOTAL(9,P12:P13) -> 208 | Q14: =SUBTOTAL(9,Q12:Q13) -> 53 | R14: =SUBTOTAL(9,R12:R13) -> 54 | S14: =SUBTOTAL(9,S12:S13) -> 49 | T14: =SUBTOTAL(9,T12:T13) -> 5990 | U14: － | V14: =SUBTOTAL(9,V12:V13) -> 271 | W14: =SUBTOTAL(9,W12:W13) -> 29 | X14: =SUBTOTAL(9,X12:X13) -> 6498 | Y14: =SUBTOTAL(9,Y12:Y13) -> 62 | Z14: =SUBTOTAL(9,Z12:Z13) -> 205 | AA14: =SUBTOTAL(9,AA12:AA13) -> 6079 | AB14: =SUBTOTAL(9,AB12:AB13) -> 93 | AC14: =SUBTOTAL(9,AC12:AC13) -> 70 | AD14: =SUBTOTAL(9,AD12:AD13) -> 35 | AE14: =SUBTOTAL(9,AE12:AE13) -> 33 | AF14: =SUBTOTAL(9,AF12:AF13) -> 89 | AG14: =SUBTOTAL(9,AG12:AG13) -> 40 | AH14: =SUBTOTAL(9,AH12:AH13) -> 49 | AI14: =SUBTOTAL(9,AI12:AI13) -> 2038 | AJ14: =SUBTOTAL(9,AJ12:AJ13) -> 383 | AK14: =SUBTOTAL(9,AK12:AK13) -> 84 | AL14: =SUBTOTAL(9,AL12:AL13) -> 641 | AM14: =SUBTOTAL(9,AM12:AM13) -> 762 | AN14: =SUBTOTAL(9,AN12:AN13) -> 318 | AO14: =SUBTOTAL(9,AO12:AO13) -> 55 | AP14: =SUBTOTAL(9,AP12:AP13) -> 239 | AQ14: =SUBTOTAL(9,AQ12:AQ13) -> 15 | AR14: =SUBTOTAL(9,AR12:AR13) -> 125 | AS14: =SUBTOTAL(9,AS12:AS13) -> 0 | AT14: =SUBTOTAL(9,AT12:AT13) -> 232 | AU14: =SUBTOTAL(9,AU12:AU13) -> 75 | AV14: =SUBTOTAL(9,AV12:AV13) -> 302 | AW14: =SUBTOTAL(9,AW12:AW13) -> 0 | AX14: =SUBTOTAL(9,AX12:AX13) -> 0 | AY14: =SUBTOTAL(9,AY12:AY13) -> 53 | AZ14: =SUBTOTAL(9,AZ12:AZ13) -> 340 | BA14: =SUBTOTAL(9,BA12:BA13) -> 15 | BB14: =SUBTOTAL(9,BB12:BB13) -> 0 | BC14: =SUBTOTAL(9,BC12:BC13) -> 745 | BD14: =SUBTOTAL(9,BD12:BD13) -> 18367 | BE14: =SUBTOTAL(9,BE12:BE13) -> 3359 | BF14: =SUBTOTAL(9,BF12:BF13) -> 29511 | BG14: =SUBTOTAL(9,BG12:BG13) -> 8436 | BH14: =SUBTOTAL(9,BH12:BH13) -> 47074 | BI14: =SUBTOTAL(9,BI12:BI13) -> 11795 | BJ14: =SUBTOTAL(9,BJ12:BJ13) -> 16518 | BK14: =SUBTOTAL(9,BK12:BK13) -> 13 | BL14: =SUBTOTAL(9,BL12:BL13) -> 10 | BM14: =SUBTOTAL(9,BM12:BM13) -> 356 | BN14: =SUBTOTAL(9,BN12:BN13) -> 0 | BO14: =SUBTOTAL(9,BO12:BO13) -> 0 | BP14: =SUBTOTAL(9,BP12:BP13) -> 24 | BQ14: =SUBTOTAL(9,BQ12:BQ13) -> 604 | BR14: =SUBTOTAL(9,BR12:BR13) -> 1782 | BS14: =SUBTOTAL(9,BS12:BS13) -> 22 | BT14: =SUBTOTAL(9,BT12:BT13) -> 1047 | BU14: =SUBTOTAL(9,BU12:BU13) -> 630 | BV14: =SUBTOTAL(9,BV12:BV13) -> 33 | BW14: =SUBTOTAL(9,BW12:BW13) -> 0 | BX14: =SUBTOTAL(9,BX12:BX13) -> 953
A15: － | B15: 県東 | C15: 病院 | D15: 県南 | E15: 589 | F15: 181 | G15: 770 | H15: 10050 | I15: 207682 | J15: 9997 | K15: － | L15: － | M15: 854 | N15: 55 | O15: 642 | P15: 65 | Q15: 6 | R15: 23 | S15: 2 | T15: 673 | U15: － | V15: 61 | W15: 0 | X15: 799 | Y15: 3 | Z15: 4 | AA15: 789 | AB15: 3 | AC15: 0 | AD15: 0 | AE15: 0 | AF15: 0 | AG15: 0 | AH15: 0 | AI15: 233 | AJ15: 36 | AK15: 0 | AL15: 101 | AM15: 94 | AN15: 20 | AO15: 0 | AP15: 41 | AQ15: 0 | AR15: 0 | AS15: 0 | AT15: 22 | AU15: 0 | AV15: 17 | AW15: 0 | AX15: 0 | AY15: 0 | AZ15: 0 | BA15: 0 | BB15: 0 | BC15: 288 | BD15: 3657 | BE15: 813 | BF15: 5107 | BG15: 1837 | BH15: 8764 | BI15: 2650 | BJ15: 4687 | BK15: 15 | BL15: 0 | BM15: 104 | BN15: 0 | BO15: 0 | BP15: 28 | BQ15: 115 | BR15: 394 | BS15: 36 | BT15: 165 | BU15: 118 | BV15: 42 | BW15: 31 | BX15: 277
A16: － | B16: 県東 | C16: 診療所 | D16: 県南 | E16: 113 | F16: 16 | H16: 1936 | I16: 20241 | J16: 2037 | K16: － | L16: － | M16: 196 | N16: 0 | O16: 175 | P16: 5 | Q16: 12 | R16: 0 | S16: 0 | T16: 187 | U16: － | V16: 1 | W16: 3 | X16: 196 | Y16: 4 | Z16: 14 | AA16: 175 | AB16: 3 | AC16: 25 | AD16: 12 | AE16: 0 | AF16: 28 | AG16: 21 | AH16: 0 | AI16: 31 | AJ16: 0 | AK16: 0 | AL16: 0 | AM16: 0 | AN16: 0 | AO16: 0 | AP16: 0 | AQ16: 0 | AR16: 0 | AS16: 0 | AT16: 0 | AU16: 0 | AV16: 0 | AW16: 0 | AX16: 0 | AY16: 0 | AZ16: 54 | BA16: 0 | BB16: 0 | BC16: 0 | BD16: 563 | BE16: 49 | BF16: 951 | BG16: 56 | BH16: 1514 | BI16: 105 | BJ16: 205 | BK16: 0 | BL16: 0 | BM16: 0 | BN16: 0 | BO16: 0 | BP16: 0 | BQ16: 11 | BR16: 201 | BS16: 0 | BT16: 117 | BU16: 69 | BV16: 11 | BW16: 0 | BX16: 0
A17: － | B17: 県東 小計 | C17: 地域小計 | E17: =SUBTOTAL(9,E15:E16) -> 702 | F17: =SUBTOTAL(9,F15:F16) -> 197 | G17: =SUBTOTAL(9,G15:G16) ->  | H17: =SUBTOTAL(9,H15:H16) -> 11986 | I17: =SUBTOTAL(9,I15:I16) -> 227923 | J17: =SUBTOTAL(9,J15:J16) -> 12034 | K17: － | L17: － | M17: =SUBTOTAL(9,M15:M16) -> 1050 | N17: =SUBTOTAL(9,N15:N16) -> 55 | O17: =SUBTOTAL(9,O15:O16) -> 817 | P17: =SUBTOTAL(9,P15:P16) -> 70 | Q17: =SUBTOTAL(9,Q15:Q16) -> 18 | R17: =SUBTOTAL(9,R15:R16) -> 23 | S17: =SUBTOTAL(9,S15:S16) -> 2 | T17: =SUBTOTAL(9,T15:T16) -> 860 | U17: － | V17: =SUBTOTAL(9,V15:V16) -> 62 | W17: =SUBTOTAL(9,W15:W16) -> 3 | X17: =SUBTOTAL(9,X15:X16) -> 995 | Y17: =SUBTOTAL(9,Y15:Y16) -> 7 | Z17: =SUBTOTAL(9,Z15:Z16) -> 18 | AA17: =SUBTOTAL(9,AA15:AA16) -> 964 | AB17: =SUBTOTAL(9,AB15:AB16) -> 6 | AC17: =SUBTOTAL(9,AC15:AC16) -> 25 | AD17: =SUBTOTAL(9,AD15:AD16) -> 12 | AE17: =SUBTOTAL(9,AE15:AE16) -> 0 | AF17: =SUBTOTAL(9,AF15:AF16) -> 28 | AG17: =SUBTOTAL(9,AG15:AG16) -> 21 | AH17: =SUBTOTAL(9,AH15:AH16) -> 0 | AI17: =SUBTOTAL(9,AI15:AI16) -> 264 | AJ17: =SUBTOTAL(9,AJ15:AJ16) -> 36 | AK17: =SUBTOTAL(9,AK15:AK16) -> 0 | AL17: =SUBTOTAL(9,AL15:AL16) -> 101 | AM17: =SUBTOTAL(9,AM15:AM16) -> 94 | AN17: =SUBTOTAL(9,AN15:AN16) -> 20 | AO17: =SUBTOTAL(9,AO15:AO16) -> 0 | AP17: =SUBTOTAL(9,AP15:AP16) -> 41 | AQ17: =SUBTOTAL(9,AQ15:AQ16) -> 0 | AR17: =SUBTOTAL(9,AR15:AR16) -> 0 | AS17: =SUBTOTAL(9,AS15:AS16) -> 0 | AT17: =SUBTOTAL(9,AT15:AT16) -> 22 | AU17: =SUBTOTAL(9,AU15:AU16) -> 0 | AV17: =SUBTOTAL(9,AV15:AV16) -> 17 | AW17: =SUBTOTAL(9,AW15:AW16) -> 0 | AX17: =SUBTOTAL(9,AX15:AX16) -> 0 | AY17: =SUBTOTAL(9,AY15:AY16) -> 0 | AZ17: =SUBTOTAL(9,AZ15:AZ16) -> 54 | BA17: =SUBTOTAL(9,BA15:BA16) -> 0 | BB17: =SUBTOTAL(9,BB15:BB16) -> 0 | BC17: =SUBTOTAL(9,BC15:BC16) -> 288 | BD17: =SUBTOTAL(9,BD15:BD16) -> 4220 | BE17: =SUBTOTAL(9,BE15:BE16) -> 862 | BF17: =SUBTOTAL(9,BF15:BF16) -> 6058 | BG17: =SUBTOTAL(9,BG15:BG16) -> 1893 | BH17: =SUBTOTAL(9,BH15:BH16) -> 10278 | BI17: =SUBTOTAL(9,BI15:BI16) -> 2755 | BJ17: =SUBTOTAL(9,BJ15:BJ16) -> 4892 | BK17: =SUBTOTAL(9,BK15:BK16) -> 15 | BL17: =SUBTOTAL(9,BL15:BL16) -> 0 | BM17: =SUBTOTAL(9,BM15:BM16) -> 104 | BN17: =SUBTOTAL(9,BN15:BN16) -> 0 | BO17: =SUBTOTAL(9,BO15:BO16) -> 0 | BP17: =SUBTOTAL(9,BP15:BP16) -> 28 | BQ17: =SUBTOTAL(9,BQ15:BQ16) -> 126 | BR17: =SUBTOTAL(9,BR15:BR16) -> 595 | BS17: =SUBTOTAL(9,BS15:BS16) -> 36 | BT17: =SUBTOTAL(9,BT15:BT16) -> 282 | BU17: =SUBTOTAL(9,BU15:BU16) -> 187 | BV17: =SUBTOTAL(9,BV15:BV16) -> 53 | BW17: =SUBTOTAL(9,BW15:BW16) -> 31 | BX17: =SUBTOTAL(9,BX15:BX16) -> 277
A18: － | B18: 県南 | C18: 病院 | D18: 県南 | E18: 3843 | F18: 601 | G18: 4444 | H18: 78815 | I18: 1290219 | J18: 79585 | K18: － | L18: － | M18: 6637 | N18: 784 | O18: 4957 | P18: 486 | Q18: 69 | R18: 35 | S18: 34 | T18: 5095 | U18: － | V18: 258 | W18: 14 | X18: 5853 | Y18: 143 | Z18: 126 | AA18: 5214 | AB18: 370 | AC18: 0 | AD18: 0 | AE18: 0 | AF18: 620 | AG18: 0 | AH18: 620 | AI18: 2551 | AJ18: 448 | AK18: 123 | AL18: 771 | AM18: 1064 | AN18: 314 | AO18: 93 | AP18: 263 | AQ18: 19 | AR18: 87 | AS18: 11 | AT18: 305 | AU18: 126 | AV18: 626 | AW18: 0 | AX18: 0 | AY18: 65 | AZ18: 116 | BA18: 41 | BB18: 19 | BC18: 947 | BD18: 24222 | BE18: 3326 | BF18: 34003 | BG18: 7658 | BH18: 58225 | BI18: 10984 | BJ18: 16325 | BK18: 10 | BL18: 15 | BM18: 729 | BN18: 0 | BO18: 0 | BP18: 186 | BQ18: 536 | BR18: 2094 | BS18: 113 | BT18: 1092 | BU18: 697 | BV18: 139 | BW18: 32 | BX18: 1338
A19: － | B19: 県南 | C19: 診療所 | D19: 県南 | E19: 297 | F19: 20 | G19: 317 | H19: 6917 | I19: 43627 | J19: 6912 | K19: － | L19: － | M19: 880 | N19: － | O19: 871 | P19: 7 | Q19: 0 | R19: 0 | S19: 0 | T19: 871 | U19: － | V19: 2 | W19: 0 | X19: 880 | Y19: 1 | Z19: 0 | AA19: 879 | AB19: 0 | AC19: 0 | AD19: 0 | AE19: 0 | AF19: 0 | AG19: 0 | AH19: 0 | AI19: 130 | AJ19: 10 | AK19: 0 | AL19: 0 | AM19: 0 | AN19: 0 | AO19: 0 | AP19: 0 | AQ19: 0 | AR19: 0 | AS19: 0 | AT19: 0 | AU19: 0 | AV19: 0 | AW19: 0 | AX19: 0 | AY19: 0 | AZ19: 199 | BA19: 0 | BB19: 0 | BC19: 0 | BD19: 4442 | BE19: 146 | BF19: 1151 | BG19: 460 | BH19: 5593 | BI19: 606 | BJ19: 284 | BK19: 0 | BL19: 0 | BM19: 10 | BN19: 0 | BO19: 0 | BP19: 0 | BQ19: 21 | BR19: 82 | BS19: 0 | BT19: 0 | BU19: 77 | BV19: 0 | BW19: 0 | BX19: 41
A20: － | B20: 県南 小計 | C20: 地域小計 | E20: =SUBTOTAL(9,E18:E19) -> 4140 | F20: =SUBTOTAL(9,F18:F19) -> 621 | G20: =SUBTOTAL(9,G18:G19) -> 4761 | H20: =SUBTOTAL(9,H18:H19) -> 85732 | I20: =SUBTOTAL(9,I18:I19) -> 1333846 | J20: =SUBTOTAL(9,J18:J19) -> 86497 | K20: － | L20: － | M20: =SUBTOTAL(9,M18:M19) -> 7517 | N20: =SUBTOTAL(9,N18:N19) -> 784 | O20: =SUBTOTAL(9,O18:O19) -> 5828 | P20: =SUBTOTAL(9,P18:P19) -> 493 | Q20: =SUBTOTAL(9,Q18:Q19) -> 69 | R20: =SUBTOTAL(9,R18:R19) -> 35 | S20: =SUBTOTAL(9,S18:S19) -> 34 | T20: =SUBTOTAL(9,T18:T19) -> 5966 | U20: － | V20: =SUBTOTAL(9,V18:V19) -> 260 | W20: =SUBTOTAL(9,W18:W19) -> 14 | X20: =SUBTOTAL(9,X18:X19) -> 6733 | Y20: =SUBTOTAL(9,Y18:Y19) -> 144 | Z20: =SUBTOTAL(9,Z18:Z19) -> 126 | AA20: =SUBTOTAL(9,AA18:AA19) -> 6093 | AB20: =SUBTOTAL(9,AB18:AB19) -> 370 | AC20: =SUBTOTAL(9,AC18:AC19) -> 0 | AD20: =SUBTOTAL(9,AD18:AD19) -> 0 | AE20: =SUBTOTAL(9,AE18:AE19) -> 0 | AF20: =SUBTOTAL(9,AF18:AF19) -> 620 | AG20: =SUBTOTAL(9,AG18:AG19) -> 0 | AH20: =SUBTOTAL(9,AH18:AH19) -> 620 | AI20: =SUBTOTAL(9,AI18:AI19) -> 2681 | AJ20: =SUBTOTAL(9,AJ18:AJ19) -> 458 | AK20: =SUBTOTAL(9,AK18:AK19) -> 123 | AL20: =SUBTOTAL(9,AL18:AL19) -> 771 | AM20: =SUBTOTAL(9,AM18:AM19) -> 1064 | AN20: =SUBTOTAL(9,AN18:AN19) -> 314 | AO20: =SUBTOTAL(9,AO18:AO19) -> 93 | AP20: =SUBTOTAL(9,AP18:AP19) -> 263 | AQ20: =SUBTOTAL(9,AQ18:AQ19) -> 19 | AR20: =SUBTOTAL(9,AR18:AR19) -> 87 | AS20: =SUBTOTAL(9,AS18:AS19) -> 11 | AT20: =SUBTOTAL(9,AT18:AT19) -> 305 | AU20: =SUBTOTAL(9,AU18:AU19) -> 126 | AV20: =SUBTOTAL(9,AV18:AV19) -> 626 | AW20: =SUBTOTAL(9,AW18:AW19) -> 0 | AX20: =SUBTOTAL(9,AX18:AX19) -> 0 | AY20: =SUBTOTAL(9,AY18:AY19) -> 65 | AZ20: =SUBTOTAL(9,AZ18:AZ19) -> 315 | BA20: =SUBTOTAL(9,BA18:BA19) -> 41 | BB20: =SUBTOTAL(9,BB18:BB19) -> 19 | BC20: =SUBTOTAL(9,BC18:BC19) -> 947 | BD20: =SUBTOTAL(9,BD18:BD19) -> 28664 | BE20: =SUBTOTAL(9,BE18:BE19) -> 3472 | BF20: =SUBTOTAL(9,BF18:BF19) -> 35154 | BG20: =SUBTOTAL(9,BG18:BG19) -> 8118 | BH20: =SUBTOTAL(9,BH18:BH19) -> 63818 | BI20: =SUBTOTAL(9,BI18:BI19) -> 11590 | BJ20: =SUBTOTAL(9,BJ18:BJ19) -> 16609 | BK20: =SUBTOTAL(9,BK18:BK19) -> 10 | BL20: =SUBTOTAL(9,BL18:BL19) -> 15 | BM20: =SUBTOTAL(9,BM18:BM19) -> 739 | BN20: =SUBTOTAL(9,BN18:BN19) -> 0 | BO20: =SUBTOTAL(9,BO18:BO19) -> 0 | BP20: =SUBTOTAL(9,BP18:BP19) -> 186 | BQ20: =SUBTOTAL(9,BQ18:BQ19) -> 557 | BR20: =SUBTOTAL(9,BR18:BR19) -> 2176 | BS20: =SUBTOTAL(9,BS18:BS19) -> 113 | BT20: =SUBTOTAL(9,BT18:BT19) -> 1092 | BU20: =SUBTOTAL(9,BU18:BU19) -> 774 | BV20: =SUBTOTAL(9,BV18:BV19) -> 139 | BW20: =SUBTOTAL(9,BW18:BW19) -> 32 | BX20: =SUBTOTAL(9,BX18:BX19) -> 1379
A21: － | B21: 両毛 | C21: 病院 | D21: 県南 | E21: 1814 | F21: 540 | G21: 2354 | H21: 31385 | I21: 653302 | J21: 31508 | K21: － | L21: － | M21: 2645 | N21: 418 | O21: 1868 | P21: 74 | Q21: 45 | R21: 47 | S21: 58 | T21: 2018 | U21: － | V21: 131 | W21: 4 | X21: 2227 | Y21: 29 | Z21: 76 | AA21: 2010 | AB21: 112 | AC21: 0 | AD21: 0 | AE21: 0 | AF21: 127 | AG21: 127 | AH21: 0 | AI21: 965 | AJ21: 129 | AK21: 37 | AL21: 299 | AM21: 366 | AN21: 103 | AO21: 27 | AP21: 88 | AQ21: 0 | AR21: 67 | AS21: 0 | AT21: 74 | AU21: 13 | AV21: 76 | AW21: 0 | AX21: 0 | AY21: 54 | AZ21: 89 | BA21: 0 | BB21: 0 | BC21: 669 | BD21: 14138 | BE21: 1591 | BF21: 15019 | BG21: 3290 | BH21: 29157 | BI21: 4881 | BJ21: 9169 | BK21: 0 | BL21: 0 | BM21: 180 | BN21: 0 | BO21: 0 | BP21: 12 | BQ21: 152 | BR21: 1151 | BS21: 90 | BT21: 608 | BU21: 255 | BV21: 118 | BW21: 22 | BX21: 648
A22: － | B22: 両毛 | C22: 診療所 | D22: 県南 | E22: 183 | F22: 3 | H22: 3162 | I22: 11720 | J22: 3210 | K22: － | L22: － | M22: 703 | N22: 0 | O22: 692 | P22: 10 | Q22: 0 | R22: 0 | S22: 0 | T22: 692 | U22: － | V22: 1 | W22: 0 | X22: 703 | Y22: 0 | Z22: 0 | AA22: 590 | AB22: 0 | AC22: 0 | AD22: 0 | AE22: 0 | AF22: 0 | AG22: 0 | AH22: 0 | AI22: 155 | AJ22: 28 | AK22: 0 | AL22: 11 | AM22: 0 | AN22: 0 | AO22: 0 | AP22: 0 | AQ22: 0 | AR22: 0 | AS22: 0 | AT22: 0 | AU22: 0 | AV22: 0 | AW22: 0 | AX22: 0 | AY22: 0 | AZ22: 156 | BA22: 0 | BB22: 0 | BC22: 0 | BD22: 225 | BE22: 104 | BF22: 943 | BG22: 566 | BH22: 1168 | BI22: 670 | BJ22: 34 | BK22: 0 | BL22: 0 | BM22: 0 | BN22: 0 | BO22: 0 | BP22: 0 | BQ22: 20 | BR22: 686 | BS22: 0 | BT22: 13 | BU22: 673 | BV22: 0 | BW22: 0 | BX22: 37
A23: － | B23: 両毛 小計 | C23: 地域小計 | E23: =SUBTOTAL(9,E21:E22) -> 1997 | F23: =SUBTOTAL(9,F21:F22) -> 543 | G23: =SUBTOTAL(9,G21:G22) ->  | H23: =SUBTOTAL(9,H21:H22) -> 34547 | I23: =SUBTOTAL(9,I21:I22) -> 665022 | J23: =SUBTOTAL(9,J21:J22) -> 34718 | K23: － | L23: － | M23: =SUBTOTAL(9,M21:M22) -> 3348 | N23: =SUBTOTAL(9,N21:N22) -> 418 | O23: =SUBTOTAL(9,O21:O22) -> 2560 | P23: =SUBTOTAL(9,P21:P22) -> 84 | Q23: =SUBTOTAL(9,Q21:Q22) -> 45 | R23: =SUBTOTAL(9,R21:R22) -> 47 | S23: =SUBTOTAL(9,S21:S22) -> 58 | T23: =SUBTOTAL(9,T21:T22) -> 2710 | U23: － | V23: =SUBTOTAL(9,V21:V22) -> 132 | W23: =SUBTOTAL(9,W21:W22) -> 4 | X23: =SUBTOTAL(9,X21:X22) -> 2930 | Y23: =SUBTOTAL(9,Y21:Y22) -> 29 | Z23: =SUBTOTAL(9,Z21:Z22) -> 76 | AA23: =SUBTOTAL(9,AA21:AA22) -> 2600 | AB23: =SUBTOTAL(9,AB21:AB22) -> 112 | AC23: =SUBTOTAL(9,AC21:AC22) -> 0 | AD23: =SUBTOTAL(9,AD21:AD22) -> 0 | AE23: =SUBTOTAL(9,AE21:AE22) -> 0 | AF23: =SUBTOTAL(9,AF21:AF22) -> 127 | AG23: =SUBTOTAL(9,AG21:AG22) -> 127 | AH23: =SUBTOTAL(9,AH21:AH22) -> 0 | AI23: =SUBTOTAL(9,AI21:AI22) -> 1120 | AJ23: =SUBTOTAL(9,AJ21:AJ22) -> 157 | AK23: =SUBTOTAL(9,AK21:AK22) -> 37 | AL23: =SUBTOTAL(9,AL21:AL22) -> 310 | AM23: =SUBTOTAL(9,AM21:AM22) -> 366 | AN23: =SUBTOTAL(9,AN21:AN22) -> 103 | AO23: =SUBTOTAL(9,AO21:AO22) -> 27 | AP23: =SUBTOTAL(9,AP21:AP22) -> 88 | AQ23: =SUBTOTAL(9,AQ21:AQ22) -> 0 | AR23: =SUBTOTAL(9,AR21:AR22) -> 67 | AS23: =SUBTOTAL(9,AS21:AS22) -> 0 | AT23: =SUBTOTAL(9,AT21:AT22) -> 74 | AU23: =SUBTOTAL(9,AU21:AU22) -> 13 | AV23: =SUBTOTAL(9,AV21:AV22) -> 76 | AW23: =SUBTOTAL(9,AW21:AW22) -> 0 | AX23: =SUBTOTAL(9,AX21:AX22) -> 0 | AY23: =SUBTOTAL(9,AY21:AY22) -> 54 | AZ23: =SUBTOTAL(9,AZ21:AZ22) -> 245 | BA23: =SUBTOTAL(9,BA21:BA22) -> 0 | BB23: =SUBTOTAL(9,BB21:BB22) -> 0 | BC23: =SUBTOTAL(9,BC21:BC22) -> 669 | BD23: =SUBTOTAL(9,BD21:BD22) -> 14363 | BE23: =SUBTOTAL(9,BE21:BE22) -> 1695 | BF23: =SUBTOTAL(9,BF21:BF22) -> 15962 | BG23: =SUBTOTAL(9,BG21:BG22) -> 3856 | BH23: =SUBTOTAL(9,BH21:BH22) -> 30325 | BI23: =SUBTOTAL(9,BI21:BI22) -> 5551 | BJ23: =SUBTOTAL(9,BJ21:BJ22) -> 9203 | BK23: =SUBTOTAL(9,BK21:BK22) -> 0 | BL23: =SUBTOTAL(9,BL21:BL22) -> 0 | BM23: =SUBTOTAL(9,BM21:BM22) -> 180 | BN23: =SUBTOTAL(9,BN21:BN22) -> 0 | BO23: =SUBTOTAL(9,BO21:BO22) -> 0 | BP23: =SUBTOTAL(9,BP21:BP22) -> 12 | BQ23: =SUBTOTAL(9,BQ21:BQ22) -> 172 | BR23: =SUBTOTAL(9,BR21:BR22) -> 1837 | BS23: =SUBTOTAL(9,BS21:BS22) -> 90 | BT23: =SUBTOTAL(9,BT21:BT22) -> 621 | BU23: =SUBTOTAL(9,BU21:BU22) -> 928 | BV23: =SUBTOTAL(9,BV21:BV22) -> 118 | BW23: =SUBTOTAL(9,BW21:BW22) -> 22 | BX23: =SUBTOTAL(9,BX21:BX22) -> 685
B24: 病院 小計 | C24: 病院小計 | D24: 統計 | E24: =SUM(E6,E9,E12,E15,E18,E21) -> 12061 | F24: =SUM(F6,F9,F12,F15,F18,F21) -> 3999 | G24: =SUM(G6,G9,G12,G15,G18,G21) -> 16060 | H24: =SUM(H6,H9,H12,H15,H18,H21) -> 230396 | I24: =SUM(I6,I9,I12,I15,I18,I21) -> 4579611 | J24: =SUM(J6,J9,J12,J15,J18,J21) -> 230427 | K24: =SUM(K6,K9,K12,K15,K18,K21) -> 0 | L24: =SUM(L6,L9,L12,L15,L18,L21) -> 0 | M24: =SUM(M6,M9,M12,M15,M18,M21) -> 21509 | N24: =SUM(N6,N9,N12,N15,N18,N21) -> 2932 | O24: =SUM(O6,O9,O12,O15,O18,O21) -> 15710 | P24: =SUM(P6,P9,P12,P15,P18,P21) -> 1054 | Q24: =SUM(Q6,Q9,Q12,Q15,Q18,Q21) -> 276 | R24: =SUM(R6,R9,R12,R15,R18,R21) -> 207 | S24: =SUM(S6,S9,S12,S15,S18,S21) -> 206 | T24: =SUM(T6,T9,T12,T15,T18,T21) -> 16399 | U24: =SUM(U6,U9,U12,U15,U18,U21) -> 0 | V24: =SUM(V6,V9,V12,V15,V18,V21) -> 1076 | W24: =SUM(W6,W9,W12,W15,W18,W21) -> 48 | X24: =SUM(X6,X9,X12,X15,X18,X21) -> 18577 | Y24: =SUM(Y6,Y9,Y12,Y15,Y18,Y21) -> 352 | Z24: =SUM(Z6,Z9,Z12,Z15,Z18,Z21) -> 493 | AA24: =SUM(AA6,AA9,AA12,AA15,AA18,AA21) -> 17016 | AB24: =SUM(AB6,AB9,AB12,AB15,AB18,AB21) -> 716 | AC24: =SUM(AC6,AC9,AC12,AC15,AC18,AC21) -> 0 | AD24: =SUM(AD6,AD9,AD12,AD15,AD18,AD21) -> 0 | AE24: =SUM(AE6,AE9,AE12,AE15,AE18,AE21) -> 0 | AF24: =SUM(AF6,AF9,AF12,AF15,AF18,AF21) -> 993 | AG24: =SUM(AG6,AG9,AG12,AG15,AG18,AG21) -> 373 | AH24: =SUM(AH6,AH9,AH12,AH15,AH18,AH21) -> 620 | AI24: =SUM(AI6,AI9,AI12,AI15,AI18,AI21) -> 7018 | AJ24: =SUM(AJ6,AJ9,AJ12,AJ15,AJ18,AJ21) -> 1344 | AK24: =SUM(AK6,AK9,AK12,AK15,AK18,AK21) -> 276 | AL24: =SUM(AL6,AL9,AL12,AL15,AL18,AL21) -> 2139 | AM24: =SUM(AM6,AM9,AM12,AM15,AM18,AM21) -> 2793 | AN24: =SUM(AN6,AN9,AN12,AN15,AN18,AN21) -> 957 | AO24: =SUM(AO6,AO9,AO12,AO15,AO18,AO21) -> 185 | AP24: =SUM(AP6,AP9,AP12,AP15,AP18,AP21) -> 758 | AQ24: =SUM(AQ6,AQ9,AQ12,AQ15,AQ18,AQ21) -> 34 | AR24: =SUM(AR6,AR9,AR12,AR15,AR18,AR21) -> 343 | AS24: =SUM(AS6,AS9,AS12,AS15,AS18,AS21) -> 11 | AT24: =SUM(AT6,AT9,AT12,AT15,AT18,AT21) -> 714 | AU24: =SUM(AU6,AU9,AU12,AU15,AU18,AU21) -> 254 | AV24: =SUM(AV6,AV9,AV12,AV15,AV18,AV21) -> 1210 | AW24: =SUM(AW6,AW9,AW12,AW15,AW18,AW21) -> 0 | AX24: =SUM(AX6,AX9,AX12,AX15,AX18,AX21) -> 0 | AY24: =SUM(AY6,AY9,AY12,AY15,AY18,AY21) -> 215 | AZ24: =SUM(AZ6,AZ9,AZ12,AZ15,AZ18,AZ21) -> 490 | BA24: =SUM(BA6,BA9,BA12,BA15,BA18,BA21) -> 66 | BB24: =SUM(BB6,BB9,BB12,BB15,BB18,BB21) -> 19 | BC24: =SUM(BC6,BC9,BC12,BC15,BC18,BC21) -> 3678 | BD24: =SUM(BD6,BD9,BD12,BD15,BD18,BD21) -> 79870 | BE24: =SUM(BE6,BE9,BE12,BE15,BE18,BE21) -> 11662 | BF24: =SUM(BF6,BF9,BF12,BF15,BF18,BF21) -> 113784 | BG24: =SUM(BG6,BG9,BG12,BG15,BG18,BG21) -> 27194 | BH24: =SUM(BH6,BH9,BH12,BH15,BH18,BH21) -> 193641 | BI24: =SUM(BI6,BI9,BI12,BI15,BI18,BI21) -> 38856 | BJ24: =SUM(BJ6,BJ9,BJ12,BJ15,BJ18,BJ21) -> 63197 | BK24: =SUM(BK6,BK9,BK12,BK15,BK18,BK21) -> 52 | BL24: =SUM(BL6,BL9,BL12,BL15,BL18,BL21) -> 36 | BM24: =SUM(BM6,BM9,BM12,BM15,BM18,BM21) -> 2024 | BN24: =SUM(BN6,BN9,BN12,BN15,BN18,BN21) -> 0 | BO24: =SUM(BO6,BO9,BO12,BO15,BO18,BO21) -> 0 | BP24: =SUM(BP6,BP9,BP12,BP15,BP18,BP21) -> 331 | BQ24: =SUM(BQ6,BQ9,BQ12,BQ15,BQ18,BQ21) -> 1876 | BR24: =SUM(BR6,BR9,BR12,BR15,BR18,BR21) -> 7827 | BS24: =SUM(BS6,BS9,BS12,BS15,BS18,BS21) -> 451 | BT24: =SUM(BT6,BT9,BT12,BT15,BT18,BT21) -> 4044 | BU24: =SUM(BU6,BU9,BU12,BU15,BU18,BU21) -> 2500 | BV24: =SUM(BV6,BV9,BV12,BV15,BV18,BV21) -> 572 | BW24: =SUM(BW6,BW9,BW12,BW15,BW18,BW21) -> 162 | BX24: =SUM(BX6,BX9,BX12,BX15,BX18,BX21) -> 4628
B25: 診療所 小計 | C25: 診療所小計 | D25: 統計 | E25: =SUM(E7,E10,E13,E16,E19,E22,) -> 1431 | F25: =SUM(F7,F10,F13,F16,F19,F22,) -> 75 | G25: =SUM(G7,G10,G13,G16,G19,G22,) ->  | H25: =SUM(H7,H10,H13,H16,H19,H22,) -> 30815 | I25: =SUM(I7,I10,I13,I16,I19,I22,) -> 204258 | J25: =SUM(J7,J10,J13,J16,J19,J22,) -> 31525 | K25: =SUM(K7,K10,K13,K16,K19,K22,) -> 0 | L25: =SUM(L7,L10,L13,L16,L19,L22,) -> 0 | M25: =SUM(M7,M10,M13,M16,M19,M22,) -> 3295 | N25: =SUM(N7,N10,N13,N16,N19,N22,) -> 0 | O25: =SUM(O7,O10,O13,O16,O19,O22,) -> 3159 | P25: =SUM(P7,P10,P13,P16,P19,P22,) -> 54 | Q25: =SUM(Q7,Q10,Q13,Q16,Q19,Q22,) -> 24 | R25: =SUM(R7,R10,R13,R16,R19,R22,) -> 6 | S25: =SUM(S7,S10,S13,S16,S19,S22,) -> 8 | T25: =SUM(T7,T10,T13,T16,T19,T22,) -> 3197 | U25: =SUM(U7,U10,U13,U16,U19,U22,) -> 0 | V25: =SUM(V7,V10,V13,V16,V19,V22,) -> 38 | W25: =SUM(W7,W10,W13,W16,W19,W22,) -> 6 | X25: =SUM(X7,X10,X13,X16,X19,X22,) -> 3295 | Y25: =SUM(Y7,Y10,Y13,Y16,Y19,Y22,) -> 19 | Z25: =SUM(Z7,Z10,Z13,Z16,Z19,Z22,) -> 20 | AA25: =SUM(AA7,AA10,AA13,AA16,AA19,AA22,) -> 2960 | AB25: =SUM(AB7,AB10,AB13,AB16,AB19,AB22,) -> 26 | AC25: =SUM(AC7,AC10,AC13,AC16,AC19,AC22,) -> 164 | AD25: =SUM(AD7,AD10,AD13,AD16,AD19,AD22,) -> 111 | AE25: =SUM(AE7,AE10,AE13,AE16,AE19,AE22,) -> 33 | AF25: =SUM(AF7,AF10,AF13,AF16,AF19,AF22,) -> 134 | AG25: =SUM(AG7,AG10,AG13,AG16,AG19,AG22,) -> 78 | AH25: =SUM(AH7,AH10,AH13,AH16,AH19,AH22,) -> 49 | AI25: =SUM(AI7,AI10,AI13,AI16,AI19,AI22,) -> 943 | AJ25: =SUM(AJ7,AJ10,AJ13,AJ16,AJ19,AJ22,) -> 61 | AK25: =SUM(AK7,AK10,AK13,AK16,AK19,AK22,) -> 0 | AL25: =SUM(AL7,AL10,AL13,AL16,AL19,AL22,) -> 130 | AM25: =SUM(AM7,AM10,AM13,AM16,AM19,AM22,) -> 15 | AN25: =SUM(AN7,AN10,AN13,AN16,AN19,AN22,) -> 23 | AO25: =SUM(AO7,AO10,AO13,AO16,AO19,AO22,) -> 0 | AP25: =SUM(AP7,AP10,AP13,AP16,AP19,AP22,) -> 0 | AQ25: =SUM(AQ7,AQ10,AQ13,AQ16,AQ19,AQ22,) -> 0 | AR25: =SUM(AR7,AR10,AR13,AR16,AR19,AR22,) -> 0 | AS25: =SUM(AS7,AS10,AS13,AS16,AS19,AS22,) -> 0 | AT25: =SUM(AT7,AT10,AT13,AT16,AT19,AT22,) -> 0 | AU25: =SUM(AU7,AU10,AU13,AU16,AU19,AU22,) -> 0 | AV25: =SUM(AV7,AV10,AV13,AV16,AV19,AV22,) -> 0 | AW25: =SUM(AW7,AW10,AW13,AW16,AW19,AW22,) -> 0 | AX25: =SUM(AX7,AX10,AX13,AX16,AX19,AX22,) -> 0 | AY25: =SUM(AY7,AY10,AY13,AY16,AY19,AY22,) -> 0 | AZ25: =SUM(AZ7,AZ10,AZ13,AZ16,AZ19,AZ22,) -> 740 | BA25: =SUM(BA7,BA10,BA13,BA16,BA19,BA22,) -> 0 | BB25: =SUM(BB7,BB10,BB13,BB16,BB19,BB22,) -> 0 | BC25: =SUM(BC7,BC10,BC13,BC16,BC19,BC22,) -> 11 | BD25: =SUM(BD7,BD10,BD13,BD16,BD19,BD22,) -> 9037 | BE25: =SUM(BE7,BE10,BE13,BE16,BE19,BE22,) -> 622 | BF25: =SUM(BF7,BF10,BF13,BF16,BF19,BF22,) -> 8951 | BG25: =SUM(BG7,BG10,BG13,BG16,BG19,BG22,) -> 1823 | BH25: =SUM(BH7,BH10,BH13,BH16,BH19,BH22,) -> 17227 | BI25: =SUM(BI7,BI10,BI13,BI16,BI19,BI22,) -> 2445 | BJ25: =SUM(BJ7,BJ10,BJ13,BJ16,BJ19,BJ22,) -> 1364 | BK25: =SUM(BK7,BK10,BK13,BK16,BK19,BK22,) -> 0 | BL25: =SUM(BL7,BL10,BL13,BL16,BL19,BL22,) -> 0 | BM25: =SUM(BM7,BM10,BM13,BM16,BM19,BM22,) -> 35 | BN25: =SUM(BN7,BN10,BN13,BN16,BN19,BN22,) -> 0 | BO25: =SUM(BO7,BO10,BO13,BO16,BO19,BO22,) -> 0 | BP25: =SUM(BP7,BP10,BP13,BP16,BP19,BP22,) -> 0 | BQ25: =SUM(BQ7,BQ10,BQ13,BQ16,BQ19,BQ22,) -> 260 | BR25: =SUM(BR7,BR10,BR13,BR16,BR19,BR22,) -> 1052 | BS25: =SUM(BS7,BS10,BS13,BS16,BS19,BS22,) -> 0 | BT25: =SUM(BT7,BT10,BT13,BT16,BT19,BT22,) -> 167 | BU25: =SUM(BU7,BU10,BU13,BU16,BU19,BU22,) -> 850 | BV25: =SUM(BV7,BV10,BV13,BV16,BV19,BV22,) -> 11 | BW25: =SUM(BW7,BW10,BW13,BW16,BW19,BW22,) -> 0 | BX25: =SUM(BX7,BX10,BX13,BX16,BX19,BX22,) -> 139
B26: 栃木県 総計 | C26: 県全体統計 | D26: 統計 | E26: =SUM(E8,E11,E14,E17,E20,E23) -> 13492 | F26: =SUM(F8,F11,F14,F17,F20,F23) -> 4074 | G26: =SUM(G8,G11,G14,G17,G20,G23) ->  | H26: =SUM(H8,H11,H14,H17,H20,H23) -> 261211 | I26: =SUM(I8,I11,I14,I17,I20,I23) -> 4783869 | J26: =SUM(J8,J11,J14,J17,J20,J23) -> 261952 | K26: =SUM(K8,K11,K14,K17,K20,K23) -> 0 | L26: =SUM(L8,L11,L14,L17,L20,L23) -> 0 | M26: =SUM(M8,M11,M14,M17,M20,M23) -> 24804 | N26: =SUM(N8,N11,N14,N17,N20,N23) -> 2932 | O26: =SUM(O8,O11,O14,O17,O20,O23) -> 18869 | P26: =SUM(P8,P11,P14,P17,P20,P23) -> 1108 | Q26: =SUM(Q8,Q11,Q14,Q17,Q20,Q23) -> 300 | R26: =SUM(R8,R11,R14,R17,R20,R23) -> 213 | S26: =SUM(S8,S11,S14,S17,S20,S23) -> 214 | T26: =SUM(T8,T11,T14,T17,T20,T23) -> 19596 | U26: =SUM(U8,U11,U14,U17,U20,U23) -> 0 | V26: =SUM(V8,V11,V14,V17,V20,V23) -> 1114 | W26: =SUM(W8,W11,W14,W17,W20,W23) -> 54 | X26: =SUM(X8,X11,X14,X17,X20,X23) -> 21872 | Y26: =SUM(Y8,Y11,Y14,Y17,Y20,Y23) -> 371 | Z26: =SUM(Z8,Z11,Z14,Z17,Z20,Z23) -> 513 | AA26: =SUM(AA8,AA11,AA14,AA17,AA20,AA23) -> 19976 | AB26: =SUM(AB8,AB11,AB14,AB17,AB20,AB23) -> 742 | AC26: =SUM(AC8,AC11,AC14,AC17,AC20,AC23) -> 164 | AD26: =SUM(AD8,AD11,AD14,AD17,AD20,AD23) -> 111 | AE26: =SUM(AE8,AE11,AE14,AE17,AE20,AE23) -> 33 | AF26: =SUM(AF8,AF11,AF14,AF17,AF20,AF23) -> 1127 | AG26: =SUM(AG8,AG11,AG14,AG17,AG20,AG23) -> 451 | AH26: =SUM(AH8,AH11,AH14,AH17,AH20,AH23) -> 669 | AI26: =SUM(AI8,AI11,AI14,AI17,AI20,AI23) -> 7961 | AJ26: =SUM(AJ8,AJ11,AJ14,AJ17,AJ20,AJ23) -> 1405 | AK26: =SUM(AK8,AK11,AK14,AK17,AK20,AK23) -> 276 | AL26: =SUM(AL8,AL11,AL14,AL17,AL20,AL23) -> 2269 | AM26: =SUM(AM8,AM11,AM14,AM17,AM20,AM23) -> 2808 | AN26: =SUM(AN8,AN11,AN14,AN17,AN20,AN23) -> 980 | AO26: =SUM(AO8,AO11,AO14,AO17,AO20,AO23) -> 185 | AP26: =SUM(AP8,AP11,AP14,AP17,AP20,AP23) -> 758 | AQ26: =SUM(AQ8,AQ11,AQ14,AQ17,AQ20,AQ23) -> 34 | AR26: =SUM(AR8,AR11,AR14,AR17,AR20,AR23) -> 343 | AS26: =SUM(AS8,AS11,AS14,AS17,AS20,AS23) -> 11 | AT26: =SUM(AT8,AT11,AT14,AT17,AT20,AT23) -> 714 | AU26: =SUM(AU8,AU11,AU14,AU17,AU20,AU23) -> 254 | AV26: =SUM(AV8,AV11,AV14,AV17,AV20,AV23) -> 1210 | AW26: =SUM(AW8,AW11,AW14,AW17,AW20,AW23) -> 0 | AX26: =SUM(AX8,AX11,AX14,AX17,AX20,AX23) -> 0 | AY26: =SUM(AY8,AY11,AY14,AY17,AY20,AY23) -> 215 | AZ26: =SUM(AZ8,AZ11,AZ14,AZ17,AZ20,AZ23) -> 1230 | BA26: =SUM(BA8,BA11,BA14,BA17,BA20,BA23) -> 66 | BB26: =SUM(BB8,BB11,BB14,BB17,BB20,BB23) -> 19 | BC26: =SUM(BC8,BC11,BC14,BC17,BC20,BC23) -> 3689 | BD26: =SUM(BD8,BD11,BD14,BD17,BD20,BD23) -> 88907 | BE26: =SUM(BE8,BE11,BE14,BE17,BE20,BE23) -> 12284 | BF26: =SUM(BF8,BF11,BF14,BF17,BF20,BF23) -> 122735 | BG26: =SUM(BG8,BG11,BG14,BG17,BG20,BG23) -> 29017 | BH26: =SUM(BH8,BH11,BH14,BH17,BH20,BH23) -> 210868 | BI26: =SUM(BI8,BI11,BI14,BI17,BI20,BI23) -> 41301 | BJ26: =SUM(BJ8,BJ11,BJ14,BJ17,BJ20,BJ23) -> 64561 | BK26: =SUM(BK8,BK11,BK14,BK17,BK20,BK23) -> 52 | BL26: =SUM(BL8,BL11,BL14,BL17,BL20,BL23) -> 36 | BM26: =SUM(BM8,BM11,BM14,BM17,BM20,BM23) -> 2059 | BN26: =SUM(BN8,BN11,BN14,BN17,BN20,BN23) -> 0 | BO26: =SUM(BO8,BO11,BO14,BO17,BO20,BO23) -> 0 | BP26: =SUM(BP8,BP11,BP14,BP17,BP20,BP23) -> 331 | BQ26: =SUM(BQ8,BQ11,BQ14,BQ17,BQ20,BQ23) -> 2136 | BR26: =SUM(BR8,BR11,BR14,BR17,BR20,BR23) -> 8879 | BS26: =SUM(BS8,BS11,BS14,BS17,BS20,BS23) -> 451 | BT26: =SUM(BT8,BT11,BT14,BT17,BT20,BT23) -> 4211 | BU26: =SUM(BU8,BU11,BU14,BU17,BU20,BU23) -> 3350 | BV26: =SUM(BV8,BV11,BV14,BV17,BV20,BV23) -> 583 | BW26: =SUM(BW8,BW11,BW14,BW17,BW20,BW23) -> 162 | BX26: =SUM(BX8,BX11,BX14,BX17,BX20,BX23) -> 4767
A27: ※ 個人情報保護のため１～９の値について「＊」となる項目あり
